fUST/lending_fUST_20250813
["ID","MTS","AMOUNT","RATE_DAILY","PERIOD"]
[378820301,1755036644227,-461.76100612,0.00020862,2]
[378820303,1755036644237,-160.0,0.00020862,2]
[378820305,1755036644246,-1158.35176561,0.00021201,2]
[378820307,1755036644256,-200.0,0.00021327,15]
[378820309,1755036644266,-200.0,0.00021327,15]
[378820311,1755036644275,-200.0,0.00021327,15]
[378820313,1755036644285,-200.0,0.00021327,15]
[378820315,1755036644295,-320.0,0.00021327,15]
[378820317,1755036644305,-5863.92,0.00021339,10]
[378820319,1755036644315,-4886.6,0.00021339,10]
[378820321,1755036644326,-7036.7,0.00021349,10]
[378820323,1755036644337,-417.15472785,0.0002137,10]
[378820325,1755036644347,-528.03329096,0.0002138,10]
[378820327,1755036644356,-8444.04,0.0002138,10]
[378820329,1755036644367,-12673.43806534,0.0002139,10]
[378820331,1755036644376,-215.52532928,0.0002139,10]
[378820333,1755036644386,-12673.43806534,0.000214,3]
[378820335,1755036644395,-461.76100612,0.000214,3]
[378820337,1755036644406,-528.03329096,0.000214,3]
[378820339,1755036644416,-417.15472785,0.000214,3]
[378820341,1755036644425,-215.52532928,0.000214,3]
[378820343,1755036644434,-160.0,0.000214,3]
[378820345,1755036644443,-771.34874092,0.00021507,2]
[378820347,1755036644453,-2386.22335559,0.00021507,2]
[378821483,1755037423514,157.585771,0.00013699,2]
[378821525,1755037831874,-303.20312881,0.000189,2]
[378821526,1755037831895,-647.65742652,0.000189,2]
[378821527,1755037831905,-303.20312881,0.00019089,2]
[378821528,1755037831915,-303.20312881,0.00019278,2]
[378821529,1755037831925,-303.20312881,0.00019467,2]
[378821531,1755037831935,-303.20312881,0.00019656,2]
[378821533,1755037831944,-454.80469322,0.00019845,4]
[378821535,1755037831954,-512.234368,0.00019863,2]
[378821537,1755037831964,-300.0,0.00019899,2]
[378821539,1755037831973,-868.76382426,0.000199,2]
[378821540,1755037831983,-39833.14557731,0.000199,2]
[378821542,1755037831995,-404.2965618,0.000199,2]
[378821544,1755037832007,-417.88717517,0.000199,2]
[378821547,1755037832040,-502.11282483,0.000199,2]
[378821548,1755037832068,-1032.61708873,0.000199,2]
[378822176,1755037843036,-4053.6832088,0.000199,2]
[378822178,1755037843046,-160.0,0.0002,3]
[378822180,1755037843055,-454.80469322,0.00020034,4]
[378822182,1755037843065,-24900.0,0.00020104,2]
[378822184,1755037843074,-454.80469322,0.00020223,4]
[378822186,1755037843084,-200.0,0.00020241,15]
[378822188,1755037843093,-200.0,0.00020241,15]
[378822190,1755037843103,-200.0,0.00020241,15]
[378822192,1755037843112,-200.0,0.00020241,15]
[378822194,1755037843122,-200.0,0.00020241,15]
[378822196,1755037843131,-2864.90547411,0.00020406,5]
[378822198,1755037843140,-576.39036642,0.00020412,4]
[378822200,1755037843149,-157.585771,0.00020548,2]
[378822202,1755037843159,-4072.17,0.0002099,10]
[378822204,1755037843168,-3393.47,0.0002099,10]
[378822206,1755037843177,-2827.89,0.0002099,10]
[378822208,1755037843187,-2356.58,0.0002099,10]
[378822210,1755037843196,-39736.80803907,0.00021,2]
[378822212,1755037843205,-18523.0,0.00021,2]
[378822214,1755037843214,-2003.0,0.00021196,2]
[378822216,1755037843224,-868.7638242,0.00021201,2]
[378822218,1755037843233,-4000.0,0.00021388,2]
[378822220,1755037843242,-215.52532928,0.00021453,10]
[378822222,1755037843251,-3516.33,0.00021472,2]
[378822224,1755037843260,-2562.72027593,0.00021473,2]
[378822226,1755037843270,-699.17160808,0.00021473,2]
[378822228,1755037843279,-6942.13866826,0.00021473,2]
[378822230,1755037843288,-518.10368252,0.00021473,2]
[378822233,1755037843299,-2072.41473007,0.00021473,2]
[378822235,1755037843308,-4658.27020952,0.00021473,2]
[378822238,1755037843317,-6000.0,0.00021498,2]
[378822240,1755037843326,-460.0,0.000215,2]
[378822244,1755037843335,-160.0,0.00021502,2]
[378822247,1755037843344,-160.0,0.00021502,2]
[378822250,1755037843354,-232.0176383,0.00021502,2]
[378822253,1755037843363,-160.0,0.00021503,2]
[378822256,1755037843372,-461.76100612,0.00021503,2]
[378822257,1755037843382,-215.52532928,0.00021503,2]
[378822260,1755037843391,-160.0,0.00021503,2]
[378822263,1755037843401,-216.70963917,0.00021503,2]
[378822266,1755037843410,-528.03329096,0.00021503,2]
[378822269,1755037843419,-417.15472785,0.00021503,2]
[378822273,1755037843428,-843.25559725,0.00021503,2]
[378822276,1755037843437,-160.0,0.00021503,2]
[378822279,1755037843447,-160.0,0.00021503,2]
[378822282,1755037843456,-500.0,0.00021503,2]
[378822284,1755037843465,-186.11802375,0.0002157,2]
[378822286,1755037843473,-461.76100612,0.00021645,10]
[378822288,1755037843482,-198.95692279,0.00021654,2]
[378822290,1755037843491,-46243.74243644,0.00021655,2]
[378822292,1755037843500,-420.0,0.0002167,2]
[378822294,1755037843510,-160.0,0.00021724,2]
[378822296,1755037843519,-55953.92988247,0.000218,2]
[378822298,1755037843529,-300.9115811,0.00021817,2]
[378822300,1755037843538,-8242.52644024,0.00021873,2]
[378822302,1755037843548,-500.0,0.00021917,2]
[378822304,1755037843558,-201.53160816,0.00021925,2]
[378822306,1755037843567,-151.0,0.00021925,2]
[378822308,1755037843577,-151.0,0.00021925,2]
[378822310,1755037843586,-151.0,0.00021925,2]
[378822312,1755037843596,-151.0,0.00021925,2]
[378822314,1755037843605,-151.0,0.00021925,2]
[378822316,1755037843615,-151.0,0.00021925,2]
[378822318,1755037843624,-151.0,0.00021925,2]
[378822320,1755037843634,-608.0,0.00021925,2]
[378822322,1755037843644,-944.0,0.00021925,2]
[378822324,1755037843653,-241.74788118,0.00021925,2]
[378822326,1755037843664,-151.0,0.00021925,2]
[378822328,1755037843674,-151.0,0.00021925,2]
[378822330,1755037843686,-254.0903166,0.00021925,2]
[378822332,1755037843695,-151.0,0.00021925,2]
[378822334,1755037843705,-151.0,0.00021925,2]
[378822336,1755037843714,-151.0,0.00021925,2]
[378822338,1755037843724,-500.0,0.00021973,2]
[378822340,1755037843734,-483.58921106,0.00021973,2]
[378822342,1755037843744,-500.0,0.00021973,2]
[378822344,1755037843753,-500.0,0.00021973,2]
[378822346,1755037843765,-564.82436377,0.00021973,2]
[378822348,1755037843775,-500.0,0.00021973,2]
[378822350,1755037843785,-500.0,0.00021973,2]
[378822352,1755037843794,-500.0,0.00021973,2]
[378822354,1755037843803,-500.0,0.00021973,2]
[378822356,1755037843813,-500.0,0.00021973,2]
[378822358,1755037843822,-572.28433155,0.00021973,2]
[378822360,1755037843831,-500.0,0.00021973,2]
[378822362,1755037843840,-500.0,0.00021973,2]
[378822364,1755037843850,-500.0,0.00021973,2]
[378822366,1755037843860,-500.0,0.00021973,2]
[378822368,1755037843869,-575.04094587,0.00021973,2]
[378822370,1755037843878,-500.0,0.00021973,2]
[378822372,1755037843888,-500.0,0.00021973,2]
[378822374,1755037843898,-200.0,0.00021973,2]
[378822376,1755037843907,-500.0,0.00021973,2]
[378822378,1755037843916,-438.73923644,0.00021973,2]
[378822380,1755037843925,-500.0,0.00021973,2]
[378822382,1755037843934,-500.0,0.00021973,2]
[378822384,1755037843943,-500.0,0.00021973,2]
[378822386,1755037843952,-500.0,0.00021973,2]
[378822388,1755037843961,-505.1922163,0.00021973,2]
[378822390,1755037843971,-451.66015152,0.00021973,2]
[378822392,1755037843980,-209.01178275,0.00021973,2]
[378822394,1755037843989,-500.0,0.00021973,2]
[378822396,1755037843999,-225.87216871,0.00021973,2]
[378822398,1755037844008,-500.0,0.00021973,2]
[378822400,1755037844017,-500.0,0.00021973,2]
[378822401,1755037844026,-500.0,0.00021973,2]
[378822403,1755037844036,-500.0,0.00021973,2]
[378822405,1755037844045,-500.0,0.00021973,2]
[378822407,1755037844055,-151.0,0.00021973,7]
[378822409,1755037844064,-153.182065,0.00021973,7]
[378822411,1755037844074,-151.0,0.00021973,7]
[378822413,1755037844084,-12673.43806534,0.00022,7]
[378822415,1755037844093,-925.61,0.00022,2]
[378822417,1755037844103,-81400.26,0.00022,7]
[378822419,1755037844112,-6738.16,0.00022,7]
[378822421,1755037844123,-60960.43,0.00022,2]
[378822423,1755037844133,-15182.53,0.00022,7]
[378822426,1755037844143,-461.76100612,0.00022,7]
[378822427,1755037844153,-151.0,0.00022,7]
[378822429,1755037844162,-151.0,0.00022,7]
[378822431,1755037844171,-151.0,0.00022,7]
[378822433,1755037844181,-151.0,0.00022,7]
[378822435,1755037844190,-151.0,0.00022,7]
[378822437,1755037844199,-151.0,0.00022,7]
[378822439,1755037844208,-151.0,0.00022,7]
[378822441,1755037844217,-152.035191,0.00022,7]
[378822443,1755037844226,-151.0,0.00022,7]
[378822445,1755037844236,-151.0,0.00022,7]
[378822447,1755037844245,-151.0,0.00022,7]
[378822449,1755037844255,-151.0,0.00022,7]
[378822451,1755037844264,-151.0,0.00022,7]
[378822453,1755037844274,-151.0,0.00022,7]
[378822455,1755037844283,-151.0,0.00022,7]
[378822457,1755037844292,-151.0,0.00022,7]
[378822459,1755037844301,-231.610135,0.00022,7]
[378822461,1755037844310,-151.0,0.00022,7]
[378822463,1755037844319,-151.0,0.00022,7]
[378822465,1755037844327,-151.0,0.00022,7]
[378822467,1755037844336,-151.0,0.00022,7]
[378822469,1755037844346,-151.0,0.00022,7]
[378822471,1755037844355,-151.0,0.00022,7]
[378822473,1755037844364,-151.0,0.00022,7]
[378822475,1755037844373,-151.0,0.00022,7]
[378822477,1755037844382,-549.132121,0.00022,7]
[378822479,1755037844391,-549.132121,0.00022,7]
[378822481,1755037844402,-224.090757,0.00022,7]
[378822483,1755037844411,-224.090757,0.00022,7]
[378822485,1755037844421,-224.090757,0.00022,7]
[378822487,1755037844431,-224.090757,0.00022,7]
[378822489,1755037844440,-151.0,0.00022,7]
[378822491,1755037844449,-151.0,0.00022,7]
[378822493,1755037844459,-160.936614,0.00022,7]
[378822495,1755037844468,-151.0,0.00022,7]
[378822497,1755037844477,-176.382352,0.00022,7]
[378822499,1755037844487,-528.03329096,0.00022,7]
[378822501,1755037844499,-168.0,0.00022,2]
[378822503,1755037844508,-168.0,0.00022,2]
[378822505,1755037844518,-151.821824,0.00022,7]
[378822507,1755037844527,-151.0,0.00022,7]
[378822509,1755037844536,-151.0,0.00022,7]
[378822511,1755037844546,-151.0,0.00022,7]
[378822513,1755037844555,-154.172595,0.00022,7]
[378822515,1755037844564,-151.0,0.00022,7]
[378822517,1755037844574,-151.0,0.00022,7]
[378822519,1755037844583,-151.0,0.00022,7]
[378822521,1755037844592,-151.0,0.00022,7]
[378822523,1755037844602,-151.0,0.00022,7]
[378822525,1755037844611,-218.196268,0.00022,7]
[378822527,1755037844621,-218.196268,0.00022,7]
[378822529,1755037844630,-218.196268,0.00022,7]
[378822531,1755037844639,-218.196268,0.00022,7]
[378822533,1755037844648,-151.0,0.00022,7]
[378822535,1755037844657,-151.0,0.00022,7]
[378822537,1755037844667,-417.15472785,0.00022,7]
[378822539,1755037844676,-151.0,0.00022,7]
[378822541,1755037844688,-151.0,0.00022,7]
[378822543,1755037844698,-151.0,0.00022,7]
[378822545,1755037844707,-151.0,0.00022,7]
[378822547,1755037844716,-248.92076,0.00022,7]
[378822549,1755037844726,-522.35090259,0.00022,2]
[378822551,1755037844735,-160.0,0.00022,7]
[378822553,1755037844744,-151.0,0.00022,7]
[378822555,1755037844754,-151.0,0.00022,7]
[378822557,1755037844764,-215.52532928,0.00022,7]
[378822559,1755037844773,-352.687554,0.00022,7]
[378822560,1755037844783,-352.687554,0.00022,7]
[378822562,1755037844792,-328.94,0.00022,2]
[378822565,1755037844801,-352.687554,0.00022,7]
[378822567,1755037844811,-352.687554,0.00022,7]
[378822569,1755037844820,-243.13985,0.00022,7]
[378822571,1755037844830,-153.308708,0.00022,7]
[378822588,1755037844977,-506.0,0.00022,2]
[378822590,1755037844987,-151.0,0.00022,7]
[378822592,1755037844996,-151.0,0.00022,7]
[378822594,1755037845006,-151.0,0.00022,7]
[378822596,1755037845015,-151.0,0.00022,7]
[378822598,1755037845024,-186.11802371,0.00022083,2]
[378822600,1755037845033,-506.0,0.00022192,7]
[378822602,1755037845043,-189.02863173,0.00022199,2]
[378822604,1755037845052,-151.0,0.00022199,2]
[378822605,1755037845061,-151.0,0.00022199,2]
[378822607,1755037845069,-151.0,0.00022199,2]
[378822609,1755037845077,-608.0,0.00022199,2]
[378822611,1755037845087,-944.0,0.00022199,2]
[378822613,1755037845096,-151.0,0.00022199,2]
[378822615,1755037845105,-200.0,0.00022223,15]
[378822617,1755037845115,-200.0,0.00022223,15]
[378822619,1755037845123,-200.0,0.00022223,15]
[378822621,1755037845132,-200.0,0.00022223,15]
[378822623,1755037845141,-200.0,0.00022223,15]
[378822625,1755037845150,-200.0,0.00022223,15]
[378822627,1755037845158,-200.0,0.00022223,15]
[378822629,1755037845167,-260.0,0.00022271,2]
[378822631,1755037845175,-151.0,0.00022434,3]
[378822633,1755037845184,-151.0,0.00022473,2]
[378822635,1755037845193,-151.0,0.00022473,2]
[378822637,1755037845203,-608.0,0.00022473,2]
[378822639,1755037845212,-944.0,0.00022473,2]
[378822642,1755037845221,-151.0,0.00022473,2]
[378822644,1755037845230,-868.7638242,0.00022501,2]
[378822646,1755037845239,-317.42164629,0.00022521,2]
[378822648,1755037845249,-501.09350321,0.00022521,2]
[378822649,1755037845258,-500.0,0.00022521,2]
[378822650,1755037845267,-1000.0,0.00022521,2]
[378822651,1755037845276,-1000.0,0.00022521,2]
[378822652,1755037845285,-1000.0,0.00022521,2]
[378822653,1755037845295,-1000.0,0.00022521,2]
[378822654,1755037845304,-1000.0,0.00022521,2]
[378822655,1755037845314,-5000.0,0.00022537,2]
[378822657,1755037845323,-186.11802371,0.00022596,2]
[378822659,1755037845333,-2000.0,0.000226,2]
[378822661,1755037845343,-250.0,0.000226,10]
[378822663,1755037845352,-500.0,0.000226,2]
[378822665,1755037845361,-500.0,0.000226,2]
[378822667,1755037845371,-408.0,0.00022616,2]
[378822669,1755037845381,-417.879,0.00022616,2]
[378822671,1755037845390,-971.0,0.00022616,2]
[378822674,1755037845399,-400.0,0.00022658,2]
[378822676,1755037845408,-250.0,0.000227,10]
[378822678,1755037845417,-198.0,0.00022747,2]
[378822680,1755037845427,-608.0,0.00022747,2]
[378822682,1755037845436,-944.0,0.00022747,2]
[378822684,1755037845445,-192.07201039,0.00022747,2]
[378822686,1755037845455,-250.0,0.000228,10]
[378822688,1755037845465,-360.0,0.00022819,2]
[378822690,1755037845475,-2200.0,0.00022829,2]
[378822692,1755037845485,-151.0,0.000229,10]
[378822694,1755037845496,-250.0,0.000229,10]
[378822697,1755037845506,-17842.522448,0.00022911,2]
[378822699,1755037845518,-151.0,0.00022911,2]
[378822701,1755037845529,-2183.86978941,0.00022911,2]
[378822703,1755037845540,-151.0,0.00022911,2]
[378822705,1755037845551,-151.0,0.00022911,2]
[378822707,1755037845562,-151.0,0.00022911,2]
[378822709,1755037845572,-151.0,0.00022911,2]
[378822711,1755037845582,-151.0,0.00022911,2]
[378822713,1755037845593,-151.0,0.00022911,2]
[378822715,1755037845604,-151.0,0.00022911,2]
[378822717,1755037845618,-151.0,0.00022911,2]
[378822719,1755037845629,-151.0,0.00022911,2]
[378822721,1755037845639,-151.0,0.00022911,2]
[378822723,1755037845650,-151.0,0.00022911,2]
[378822725,1755037845665,-151.0,0.00022911,2]
[378822727,1755037845675,-151.0,0.00022911,2]
[378822729,1755037845688,-151.0,0.00022911,2]
[378822731,1755037845698,-151.0,0.00022911,2]
[378822733,1755037845708,-151.0,0.00022911,2]
[378822735,1755037845718,-151.0,0.00022911,2]
[378822737,1755037845729,-151.0,0.00022911,2]
[378822739,1755037845739,-151.0,0.00022911,2]
[378822741,1755037845748,-151.0,0.00022911,2]
[378822743,1755037845757,-151.0,0.00022911,2]
[378822745,1755037845770,-500.0,0.00022911,2]
[378822747,1755037845780,-500.0,0.00022911,2]
[378822749,1755037845791,-500.0,0.00022911,2]
[378822751,1755037845800,-500.0,0.00022911,2]
[378822753,1755037845809,-500.0,0.00022911,2]
[378822755,1755037845819,-500.0,0.00022911,2]
[378822757,1755037845828,-151.0,0.00022911,2]
[378822759,1755037845838,-151.0,0.00022911,2]
[378822762,1755037845847,-500.0,0.00022911,2]
[378822763,1755037845857,-151.0,0.00022911,2]
[378822765,1755037845866,-151.0,0.00022911,2]
[378822767,1755037845875,-151.0,0.00022911,2]
[378822769,1755037845884,-500.0,0.00022911,2]
[378822771,1755037845894,-151.0,0.00022911,2]
[378822773,1755037845905,-151.0,0.00022911,2]
[378822775,1755037845915,-500.0,0.00022911,2]
[378822777,1755037845924,-151.0,0.00022911,2]
[378822779,1755037845934,-151.0,0.00022911,2]
[378822781,1755037845943,-151.0,0.00022911,2]
[378822783,1755037845952,-151.0,0.00022911,2]
[378822785,1755037845962,-151.0,0.00022911,2]
[378822787,1755037845971,-151.0,0.00022911,2]
[378822789,1755037845980,-151.0,0.00022911,2]
[378822791,1755037845989,-151.0,0.00022911,7]
[378822793,1755037845999,-200.866006,0.00022911,7]
[378822795,1755037846007,-151.0,0.00022911,7]
[378822797,1755037846017,-218.196268,0.00022911,7]
[378822799,1755037846026,-218.196268,0.00022911,7]
[378822801,1755037846036,-151.0,0.00022911,7]
[378822803,1755037846045,-151.0,0.00022911,7]
[378822805,1755037846053,-151.0,0.00022911,7]
[378822807,1755037846063,-151.0,0.00022911,7]
[378822809,1755037846072,-160.0,0.00023,3]
[378822811,1755037846081,-151.0,0.00023,7]
[378822813,1755037846090,-151.0,0.00023,7]
[378822814,1755037846099,-160.0,0.00023,2]
[378822817,1755037846109,-151.0,0.00023,7]
[378822819,1755037846118,-549.132121,0.00023,7]
[378822820,1755037846127,-250.0,0.00023,10]
[378822822,1755037846136,-224.090757,0.00023,7]
[378822824,1755037846145,-224.090757,0.00023,7]
[378822827,1755037846156,-11694.18026196,0.00023,2]
[378822828,1755037846165,-151.0,0.00023,7]
[378822830,1755037846174,-352.687554,0.00023,7]
[378822833,1755037846183,-352.687554,0.00023,7]
[378822834,1755037846193,-168.0,0.00023014,7]
[378822837,1755037846202,-506.0,0.00023014,7]
[378822838,1755037846211,-608.0,0.00023021,2]
[378822840,1755037846221,-944.0,0.00023021,2]
[378822842,1755037846230,-151.0,0.00023024,7]
[378822844,1755037846239,-1500.0,0.00023068,2]
[378822847,1755037846248,-1500.0,0.00023068,2]
[378822849,1755037846258,-489.03145931,0.00023068,2]
[378822851,1755037846267,-1500.0,0.00023068,2]
[378822853,1755037846277,-1500.0,0.00023068,2]
[378822855,1755037846287,-250.0,0.000231,10]
[378822857,1755037846296,-186.11802371,0.00023108,2]
[378822858,1755037846305,-500.0,0.00023173,2]
[378822860,1755037846315,-500.0,0.00023173,2]
[378822862,1755037846324,-500.0,0.00023173,2]
[378822864,1755037846333,-500.0,0.00023173,2]
[378822866,1755037846342,-277.34792382,0.00023173,2]
[378822868,1755037846350,-500.0,0.00023173,2]
[378822870,1755037846359,-500.0,0.00023173,2]
[378822872,1755037846368,-500.0,0.00023173,2]
[378822874,1755037846378,-500.0,0.00023173,2]
[378822876,1755037846387,-500.0,0.00023173,2]
[378822878,1755037846397,-500.0,0.00023173,2]
[378822880,1755037846408,-500.0,0.00023173,2]
[378822882,1755037846416,-500.0,0.00023173,2]
[378822884,1755037846425,-500.0,0.00023173,2]
[378822886,1755037846435,-500.0,0.00023173,2]
[378822888,1755037846445,-500.0,0.00023173,2]
[378822890,1755037846455,-500.0,0.00023173,2]
[378822892,1755037846467,-500.0,0.00023173,2]
[378822894,1755037846478,-500.0,0.00023173,2]
[378822896,1755037846489,-616.00455131,0.00023173,2]
[378822898,1755037846499,-500.0,0.00023173,2]
[378822900,1755037846509,-500.92555902,0.00023173,2]
[378822902,1755037846520,-500.0,0.00023173,2]
[378822904,1755037846530,-500.0,0.00023173,2]
[378822906,1755037846540,-500.0,0.00023173,2]
[378822908,1755037846550,-500.0,0.00023173,2]
[378822910,1755037846560,-500.0,0.00023173,2]
[378822912,1755037846569,-500.0,0.00023173,2]
[378822914,1755037846580,-500.0,0.00023173,2]
[378822916,1755037846589,-500.0,0.00023173,2]
[378822918,1755037846599,-500.0,0.00023173,2]
[378822920,1755037846608,-500.0,0.00023173,2]
[378822922,1755037846617,-500.0,0.00023173,2]
[378822924,1755037846626,-500.0,0.00023173,2]
[378822926,1755037846636,-500.0,0.00023173,2]
[378822928,1755037846645,-500.0,0.00023173,2]
[378822930,1755037846657,-500.0,0.00023173,2]
[378822932,1755037846666,-500.0,0.00023173,2]
[378822934,1755037846676,-500.0,0.00023173,2]
[378822936,1755037846689,-500.0,0.00023173,2]
[378822938,1755037846699,-500.0,0.00023173,2]
[378822940,1755037846708,-500.0,0.00023173,2]
[378822942,1755037846717,-592.7304855,0.00023173,2]
[378822944,1755037846728,-500.0,0.00023173,2]
[378822946,1755037846737,-81400.26,0.000232,7]
[378822948,1755037846747,-6738.16,0.000232,7]
[378822950,1755037846756,-151.0,0.000232,7]
[378822952,1755037846768,-549.132121,0.000232,7]
[378822954,1755037846776,-151.0,0.000232,7]
[378822956,1755037846785,-549.132121,0.000232,7]
[378822958,1755037846794,-250.0,0.000232,10]
[378822960,1755037846802,-224.090757,0.000232,7]
[378822962,1755037846811,-224.090757,0.000232,7]
[378822964,1755037846820,-151.0,0.000232,7]
[378822966,1755037846829,-151.0,0.000232,7]
[378822968,1755037846839,-218.196268,0.000232,7]
[378822970,1755037846848,-218.196268,0.000232,7]
[378822972,1755037846857,-151.0,0.000232,7]
[378822974,1755037846866,-151.0,0.000232,7]
[378822976,1755037846876,-151.0,0.000232,7]
[378822978,1755037846885,-352.687554,0.000232,7]
[378822981,1755037846894,-352.687554,0.000232,7]
[378822983,1755037846906,-151.0,0.000232,7]
[378822985,1755037846916,-162.65333618,0.00023233,2]
[378822987,1755037846925,-151.0,0.0002327,3]
[378822988,1755037846934,-151.0,0.00023288,7]
[378822990,1755037846943,-151.0,0.00023288,7]
[378822992,1755037846952,-151.0,0.00023288,7]
[378822994,1755037846962,-512.234368,0.00023288,2]
[378822996,1755037846971,-608.0,0.00023295,2]
[378822998,1755037846980,-944.0,0.00023295,2]
[378823000,1755037846990,-60960.43,0.000233,2]
[378823002,1755037846999,-15182.53,0.000233,7]
[378823004,1755037847008,-151.0,0.000233,6]
[378823006,1755037847017,-151.0,0.000233,7]
[378823008,1755037847027,-245.0,0.000233,7]
[378823010,1755037847036,-549.132121,0.000233,7]
[378823012,1755037847046,-151.0,0.000233,7]
[378823014,1755037847055,-549.132121,0.000233,7]
[378823016,1755037847064,-250.0,0.000233,10]
[378823018,1755037847073,-224.090757,0.000233,7]
[378823020,1755037847083,-224.090757,0.000233,7]
[378823022,1755037847092,-151.0,0.000233,7]
[378823024,1755037847101,-151.0,0.000233,7]
[378823026,1755037847111,-218.196268,0.000233,7]
[378823028,1755037847120,-218.196268,0.000233,7]
[378823029,1755037847129,-151.0,0.000233,7]
[378823031,1755037847139,-151.0,0.000233,7]
[378823033,1755037847147,-186.991565,0.000233,7]
[378823035,1755037847159,-352.687554,0.000233,7]
[378823037,1755037847168,-352.687554,0.000233,7]
[378823039,1755037847177,-8242.52644022,0.00023332,2]
[378823041,1755037847187,-600.0,0.00023342,2]
[378823043,1755037847196,-2066.29,0.00023361,2]
[378823045,1755037847205,-460.0,0.00023367,2]
[378823047,1755037847215,-172.94945499,0.00023397,10]
[378823049,1755037847224,-250.0,0.000234,10]
[378823051,1755037847233,-645.0,0.000234,2]
[378823053,1755037847243,-46243.74243644,0.00023409,2]
[378823055,1755037847253,-200.0,0.0002342,7]
[378823057,1755037847262,-162.65333618,0.00023425,2]
[378823059,1755037847272,-250.0,0.000235,10]
[378823061,1755037847281,-1000.0,0.000235,2]
[378823063,1755037847290,-162.65333619,0.00023534,2]
[378823065,1755037847299,-608.0,0.00023569,2]
[378823067,1755037847308,-944.0,0.00023569,2]
[378823069,1755037847317,-162.65333618,0.00023589,2]
[378823071,1755037847327,-587.0,0.00023599,2]
[378823073,1755037847335,-2000.0,0.000236,2]
[378823075,1755037847346,-151.0,0.000236,8]
[378823077,1755037847355,-250.0,0.000236,10]
[378823079,1755037847364,-2000.0,0.00023616,2]
[378823080,1755037847373,-2000.0,0.00023616,2]
[378823082,1755037847383,-2000.0,0.00023616,2]
[378823084,1755037847394,-2000.0,0.00023616,2]
[378823086,1755037847404,-186.11802371,0.00023621,2]
[378823088,1755037847413,-549.132121,0.00023688,7]
[378823090,1755037847423,-267.225432,0.00023688,7]
[378823092,1755037847432,-549.132121,0.00023688,7]
[378823094,1755037847441,-224.090757,0.00023688,7]
[378823096,1755037847451,-224.090757,0.00023688,7]
[378823098,1755037847460,-151.0,0.00023688,7]
[378823100,1755037847470,-218.196268,0.00023688,7]
[378823102,1755037847479,-218.196268,0.00023688,7]
[378823104,1755037847489,-151.0,0.00023688,7]
[378823106,1755037847498,-151.0,0.00023688,7]
[378823108,1755037847508,-352.687554,0.00023688,7]
[378823110,1755037847518,-352.687554,0.00023688,7]
[378823112,1755037847528,-250.0,0.000237,10]
[378823113,1755037847538,-1000.0,0.00023721,2]
[378823115,1755037847547,-1000.0,0.00023721,2]